bitfinex/quotes_ETHUSD_20260114
["timestamp","ask_amount","ask_price","bid_price","bid_amount"]
[1768357646777,4.9575282,3332.3,3331.2,4.18511407]
[1768357647137,4.9575282,3332.3,3331.3,4.18511407]
[1768357647400,3.00102034,3332.2,3331.3,4.18511407]
[1768357647772,3.00102034,3332.2,3331.4,4.18511407]
[1768357648902,0.41,3332.1,3331.4,4.18511407]
[1768357649203,0.41,3332.1,3331.5,4.18511407]
[1768357650207,4.01326287,3331.7,3330.7,4.18511407]
[1768357650407,9.71710266,3331.8,3330.7,4.18511407]
[1768357650408,4.42326287,3331.6,3330.7,4.18511407]
[1768357651207,7.97987452,3331.6,3330.7,4.18511407]
[1768357651413,4.01326287,3331.5,3330.7,4.18511407]
[1768357652906,7.01492827,3331.5,3330.7,4.18511407]
[1768357653380,7.01492827,3331.5,3330.6,0.21197449]
[1768357653381,4.01326287,3331.1,3330.6,0.21197449]
[1768357653579,16.81857539,3331.5,3330.6,0.21197449]
[1768357653580,0.41,3331.0,3330.6,0.21197449]
[1768357653908,4.01326287,3331.3,3330.6,0.21197449]
[1768357653909,0.41,3330.9,3330.6,0.21197449]
[1768357654474,3.55665938,3331.5,3330.8,4.18511407]
[1768357654679,0.41,3331.4,3330.8,4.18511407]
[1768357654992,0.41,3331.4,3331.0,0.001]
[1768357655883,0.965,3331.4,3331.0,0.001]
[1768357656609,0.965,3331.4,3330.6,4.42887271]
[1768357656782,0.555,3331.4,3330.8,4.21689822]
[1768357656984,0.41,3331.3,3330.9,4.21689822]
[1768357658321,0.965,3331.3,3330.9,4.21689822]
[1768357659731,0.8942923,3331.3,3330.9,4.21689822]
[1768357659931,0.555,3331.5,3331.2,4.21689822]
[1768357660102,0.555,3331.5,3331.0,9.71710266]
[1768357660103,0.41,3331.4,3331.3,4.21689822]
[1768357660305,0.555,3331.6,3331.4,4.21689822]
[1768357660531,0.555,3331.6,3330.6,0.21197449]
[1768357660532,0.555,3331.4,3330.7,4.21689822]
[1768357660831,0.41,3331.3,3330.9,4.21689822]
[1768357661032,0.41,3331.3,3331.0,4.21689822]
[1768357662039,4.25276318,3331.2,3330.6,0.21197449]
[1768357662204,0.41,3331.3,3330.6,0.21197449]
[1768357662737,3.41184264,3331.3,3330.6,0.21197449]
[1768357663136,11.22144846,3331.3,3330.6,0.21197449]
[1768357663326,8.21960582,3331.3,3330.6,0.21197449]
[1768357663527,11.22144846,3331.3,3330.6,0.21197449]
[1768357663725,11.22144846,3331.3,3330.9,4.21689822]
[1768357663726,0.48335863,3331.3,3330.9,4.21689822]
[1768357664233,0.48335863,3331.3,3330.6,0.21197449]
[1768357664622,0.48335863,3331.3,3330.6,3.2144341]
[1768357664806,0.48335863,3331.3,3330.6,6.24692073]
[1768357665238,0.48335863,3331.3,3330.6,6.21689611]
[1768357665539,0.48335863,3331.3,3330.7,3.00236529]
[1768357665836,0.48335863,3331.3,3330.8,4.21689822]
[1768357665837,1.03835863,3331.3,3330.8,4.21689822]
[1768357666318,1.03835863,3331.3,3330.9,0.001]
[1768357666514,0.002,3331.1,3330.6,0.16105023]
[1768357666909,0.41,3331.0,3330.6,0.16105023]
[1768357667414,0.002,3331.1,3330.6,0.16105023]
[1768357667634,0.41,3330.9,3330.6,0.16105023]
[1768357668206,0.965,3330.9,3330.6,0.16105023]
[1768357669742,4.25276318,3330.8,3330.1,0.0235943]
[1768357669942,5.07475866,3330.7,3330.1,0.0235943]
[1768357670112,0.41,3330.6,3330.2,4.21689822]
[1768357670611,0.41,3330.6,3330.1,0.0235943]
[1768357671234,0.41,3330.5,3330.2,0.03002822]
[1768357671736,0.41,3330.5,3330.1,7.24338751]
[1768357671937,0.41,3330.5,3330.1,4.24049252]
[1768357673013,0.555,3330.7,3330.2,4.24692644]
[1768357673014,0.41,3330.4,3330.2,4.24692644]
[1768357673215,0.91407574,3330.7,3330.4,4.62689822]
[1768357673410,0.555,3330.9,3330.6,4.21689822]
[1768357674013,0.002,3331.1,3330.9,4.21689822]
[1768357674648,0.002,3331.1,3330.1,3.02643473]
[1768357674649,4.25276318,3331.0,3330.1,3.02643473]
[1768357674848,0.41,3330.9,3330.1,3.02643473]
[1768357675052,4.66276318,3330.9,3330.1,0.0235943]
[1768357675344,5.21776318,3330.9,3330.1,0.0235943]
[1768357675747,0.965,3330.9,3330.2,7.21965939]
[1768357675950,0.965,3330.9,3330.3,4.21689822]
[1768357676947,0.555,3330.9,3330.3,4.21689822]
[1768357677953,1.11,3330.9,3330.1,7.24335019]
[1768357679032,1.11,3330.9,3330.6,0.001]
[1768357680418,1.665,3330.9,3330.6,0.001]
[1768357682746,2.22,3330.9,3330.6,0.001]
[1768357683155,2.22,3330.9,3330.6,4.21789822]
[1768357684271,2.22,3330.9,3330.6,7.22034437]
[1768357685065,2.22,3330.9,3330.4,3.00262915]
[1768357685066,4.85358704,3330.8,3329.5,4.39418503]
[1768357685351,4.85358704,3330.8,3329.7,3.00322982]
[1768357685553,4.85358704,3330.8,3329.6,7.39750975]
[1768357685759,5.80688652,3330.7,3329.6,7.39750975]
[1768357685959,5.80688652,3330.7,3329.7,0.41]
[1768357686156,1.36329948,3330.7,3329.7,4.80418503]
[1768357686360,3.00237187,3330.7,3329.8,4.39418503]
[1768357686574,3.00237187,3330.7,3329.9,4.39418503]
[1768357687066,3.41231175,3330.8,3329.9,4.39418503]
[1768357687229,2.775,3330.9,3330.0,4.39418503]
[1768357687652,0.555,3330.8,3330.2,4.39418503]
[1768357688763,0.555,3330.8,3330.3,0.41]
[1768357689639,0.555,3330.8,3330.2,4.39418503]
[1768357689640,3.55729688,3330.8,3330.2,4.39418503]
[1768357689965,4.11229688,3330.8,3330.3,0.41]
[1768357690264,1.11,3330.8,3330.3,0.41]
[1768357690426,4.11230036,3330.8,3330.3,0.41]
[1768357690630,0.002,3330.6,3330.3,0.41]
[1768357692248,0.557,3330.6,3330.3,0.41]
[1768357693266,0.557,3330.6,3330.1,4.39418503]
[1768357693461,0.557,3330.6,3330.2,0.41]
[1768357695269,1.112,3330.6,3330.2,0.41]
[1768357695467,1.112,3330.6,3330.1,4.39418503]
[1768357695650,1.112,3330.6,3330.3,0.41]
[1768357697545,1.667,3330.6,3330.3,0.41]
[1768357699853,2.222,3330.6,3330.3,0.41]
[1768357700883,2.222,3330.6,3330.3,4.7447465]
[1768357701580,2.777,3330.9,3330.5,4.3347465]
[1768357701879,1.03835863,3331.3,3330.6,4.3347465]
[1768357702041,1.03835863,3331.3,3330.3,0.41]
[1768357702042,1.03835863,3331.3,3330.7,4.7447465]
[1768357702640,1.59335863,3331.3,3330.7,4.7447465]
[1768357703275,0.002,3330.9,3330.7,4.7447465]
[1768357703673,1.59335863,3331.3,3330.7,4.7447465]
[1768357704445,1.59335863,3331.3,3330.7,7.74711725]
[1768357705062,2.14835863,3331.3,3330.8,4.3347465]
[1768357707078,4.2912679,3331.2,3329.4,4.3347465]
[1768357707378,4.2912679,3331.0,3329.4,7.33827953]
[1768357707671,4.2912679,3330.8,3329.5,4.7447465]
[1768357708077,4.2912679,3330.8,3329.6,4.3347465]
[1768357709082,4.2912679,3330.6,3329.6,4.3347465]
[1768357710155,3.00255216,3330.5,3329.6,4.3347465]
[1768357710365,3.00255216,3330.5,3329.7,0.41]
[1768357711170,7.29382006,3330.5,3329.7,0.41]
[1768357712589,10.29637222,3330.5,3329.7,0.41]
[1768357712885,10.85137222,3330.5,3329.7,0.41]
[1768357713180,7.84882006,3330.5,3329.7,0.41]
[1768357714258,7.84882006,3330.5,3329.7,4.7447465]
[1768357714881,7.84882006,3330.5,3330.0,0.001]
[1768357715188,7.84882006,3330.5,3330.1,0.41]
[1768357715392,8.40382006,3330.5,3330.1,0.41]
[1768357715594,4.11258281,3330.5,3330.1,0.41]
[1768357717787,4.66758281,3330.5,3330.1,0.41]
[1768357718298,4.66758281,3330.5,3330.0,0.001]
[1768357718599,8.78425486,3330.5,3330.1,0.41]
[1768357718796,4.66758281,3330.5,3330.1,0.41]
[1768357720366,5.22258281,3330.5,3330.1,0.41]
[1768357721699,5.22258281,3330.5,3330.0,0.001]
[1768357721888,5.22258281,3330.5,3330.1,0.41]
[1768357722894,5.77758281,3330.5,3330.1,0.41]
[1768357725200,2.775,3330.5,3330.1,0.41]
[1768357725396,6.33255558,3330.5,3330.1,0.41]
[1768357725603,3.33,3330.5,3330.1,0.41]
[1768357726103,6.33255375,3330.5,3330.1,0.41]
[1768357726975,3.33,3330.5,3330.1,0.41]
[1768357727171,3.33,3330.5,3330.1,4.59746101]
[1768357727895,3.885,3330.5,3330.1,4.59746101]
[1768357730409,4.44,3330.5,3330.1,4.59746101]
[1768357732102,7.44256057,3330.5,3330.0,0.001]
[1768357732302,4.44,3330.5,3330.1,0.41]
[1768357732802,4.995,3330.5,3330.1,0.41]
[1768357735623,5.55,3330.5,3330.1,0.41]
[1768357737883,5.55,3330.5,3330.0,0.001]
[1768357737884,13.22422421,3330.5,3330.2,0.41]
[1768357738811,13.22422421,3330.5,3330.4,0.001]
[1768357740511,13.77922421,3330.5,3330.4,0.001]
[1768357741629,13.77922421,3330.5,3329.1,4.18746101]
[1768357741630,4.11667205,3330.4,3329.1,4.18746101]
[1768357741786,4.11667205,3330.0,3329.2,0.41]
[1768357741985,4.11667205,3330.0,3329.2,4.59746101]
[1768357742312,1.73367131,3330.4,3329.2,4.59746101]
[1768357742313,4.11667205,3330.3,3329.2,4.59746101]
[1768357742489,4.11667205,3330.1,3329.2,4.59746101]
[1768357744330,3.003003,3330.0,3329.2,4.59746101]
[1768357745390,3.558003,3330.0,3329.2,4.59746101]
[1768357745590,0.555,3330.0,3329.3,4.21001826]
[1768357746533,3.55801941,3330.0,3329.3,4.21001826]
[1768357747116,0.555,3330.0,3329.3,4.21001826]
[1768357747304,0.555,3330.0,3329.3,4.2400546]
[1768357748329,0.555,3330.0,3329.4,4.21001826]
[1768357748330,1.11,3330.0,3329.4,4.21001826]
[1768357748484,1.11,3330.0,3329.6,4.21001826]
[1768357748689,1.11,3330.0,3329.7,0.41]
[1768357750613,1.665,3330.0,3329.7,0.41]
[1768357753165,2.22,3330.0,3329.7,0.41]
[1768357753666,5.22301911,3330.0,3329.7,0.41]
[1768357755437,2.22,3330.0,3329.7,0.41]
[1768357755737,2.775,3330.0,3329.7,0.41]
[1768357758372,3.33,3330.0,3329.7,0.41]
[1768357759076,3.33,3330.0,3329.7,4.84995294]
[1768357761050,3.33,3330.0,3329.7,4.43995294]
[1768357761254,3.33,3330.0,3329.8,0.41]
[1768357761255,3.885,3330.0,3329.8,0.41]
[1768357761696,3.885,3330.0,3329.8,4.84995294]
[1768357763897,4.44,3330.0,3329.8,4.84995294]
[1768357766593,4.995,3330.0,3329.8,4.84995294]
[1768357767831,0.555,3330.3,3330.0,4.43995294]
[1768357768830,1.11,3330.3,3330.0,4.43995294]
[1768357770525,1.11,3330.3,3330.0,7.44295444]
[1768357771367,1.665,3330.3,3330.0,4.43995294]
[1768357771554,1.665,3330.3,3330.0,7.44295107]
[1768357772275,1.665,3330.3,3330.0,4.43995294]
[1768357772443,1.665,3330.3,3329.9,3.00305741]
[1768357772644,1.665,3330.3,3330.0,4.43995294]
[1768357773775,6.66,3330.5,3330.1,4.43995294]
[1768357774075,6.66,3330.5,3330.2,0.41]
[1768357775570,6.66,3330.5,3330.2,7.79381435]
[1768357775927,3.00201388,3331.1,3330.3,4.38099212]
[1768357776126,3.00201388,3331.1,3330.4,4.38099212]
[1768357776374,7.13741177,3331.1,3330.4,4.38099212]
[1768357776869,3.00201388,3331.1,3330.4,4.38099212]
[1768357777085,0.557,3332.3,3331.8,4.38099212]
[1768357777232,0.557,3332.3,3330.4,13.51562523]
[1768357777233,0.557,3332.3,3331.6,0.06955368]
[1768357777432,4.13539789,3332.2,3331.7,0.41]
[1768357777661,4.13539789,3332.2,3331.6,0.06955368]
[1768357777662,4.13539789,3332.1,3331.6,0.06955368]
[1768357777840,4.13539789,3332.1,3331.0,4.38099212]
[1768357778041,4.13539789,3331.8,3330.8,4.38099212]
[1768357778261,4.13539789,3331.6,3330.9,0.41]
[1768357778674,1.3862463,3331.7,3330.9,4.79099212]
[1768357778846,4.13539789,3331.8,3330.9,4.79099212]
[1768357778847,4.13539789,3331.8,3330.9,7.79312457]
[1768357779476,4.13539789,3331.8,3331.0,4.38099212]
[1768357779685,1e-08,3332.3,3331.9,4.38099212]
[1768357779892,1e-08,3332.3,3332.0,0.41]
[1768357780172,4.1353979,3332.3,3332.1,0.41]
[1768357780957,4.1353979,3332.3,3332.1,0.27154451]
[1768357781162,5.40402234,3332.3,3332.1,0.27154451]
[1768357781672,1.26862445,3332.3,3332.1,0.27154451]
[1768357781853,0.55500001,3332.3,3332.1,0.27154451]
[1768357783755,1.11000001,3332.3,3332.2,0.41]
[1768357784281,1.11000001,3332.3,3331.3,4.38099212]
[1768357784282,4.13539789,3332.2,3331.3,4.38099212]
[1768357784444,4.13539789,3332.2,3331.4,4.38099212]
[1768357784844,1.11000001,3332.3,3331.5,4.79099212]
[1768357785044,1.93462553,3332.3,3331.5,4.79099212]
[1768357785983,2.48962553,3332.3,3331.5,4.79099212]
[1768357786146,0.002,3332.0,3331.5,4.79099212]
[1768357786346,0.355,3332.7,3332.0,4.38099212]
[1768357786563,0.355,3332.7,3332.1,4.79099212]
[1768357787284,0.355,3332.7,3332.1,7.7920337]
[1768357787488,0.355,3332.7,3332.2,4.38099212]
[1768357788344,0.91,3332.7,3332.2,4.38099212]
[1768357789653,4.442,3332.8,3332.2,4.38099212]
[1768357789987,1.54848405,3332.8,3332.2,4.38099212]
[1768357790286,1.54848405,3332.8,3332.1,0.41]
[1768357790647,2.10348405,3332.8,3332.1,0.41]
[1768357791796,0.555,3332.8,3332.7,4.38099212]
[1768357791954,0.505,3332.9,3332.7,0.41]
[1768357793275,1.06,3332.9,3332.7,0.41]
[1768357794621,1.06,3332.9,3332.7,0.29446327]
[1768357795175,4.13539789,3332.8,3331.4,4.38099212]
[1768357795373,4.13539789,3332.8,3331.5,0.41]
[1768357795614,4.13539789,3332.8,3331.6,0.41]
[1768357795786,4.13539789,3332.6,3331.6,0.41]
[1768357795988,0.555,3332.8,3332.0,4.38099212]
[1768357796187,0.555,3332.8,3331.7,0.0300147]
[1768357796188,0.555,3332.8,3331.8,4.38099212]
[1768357796375,0.555,3332.8,3331.9,4.79099212]
[1768357796712,0.555,3332.8,3331.9,19.29099212]
[1768357797212,0.555,3332.8,3332.0,4.79099212]
[1768357797789,4.69039789,3332.8,3332.0,0.41]
[1768357797983,4.69039789,3332.8,3332.5,0.001]
[1768357798305,5.24539789,3332.8,3332.6,0.41]
[1768357798505,1.11,3332.8,3332.6,0.41]
[1768357798887,4.13539789,3332.7,3332.3,0.41]
[1768357799096,4.35239789,3332.7,3332.4,0.41]
[1768357799275,4.35239789,3332.7,3332.3,0.41]
[1768357800500,4.90739789,3332.7,3332.3,0.41]
[1768357800697,4.69039789,3332.7,3332.3,0.41]
[1768357801571,4.13539789,3332.6,3331.5,4.38099212]
[1768357801770,6.55616416,3332.7,3330.6,4.38099212]
[1768357801771,4.13539789,3331.9,3330.6,4.38099212]
[1768357801974,9.71442565,3332.0,3330.6,4.38099212]
[1768357801975,4.13539789,3331.7,3330.7,0.41]
[1768357802205,4.13539789,3331.7,3330.5,0.03102552]
[1768357802206,4.13539789,3331.7,3330.5,0.001]
[1768357802418,4.13539789,3331.5,3330.6,0.41]
[1768357803900,4.13539789,3331.5,3330.5,0.001]
[1768357804107,4.13539789,3331.3,3330.5,0.001]
[1768357805491,4.69039789,3331.3,3330.5,0.001]
[1768357806112,0.555,3331.3,3330.5,0.001]
[1768357806410,0.555,3331.3,3330.5,4.35067767]
[1768357808119,1.11,3331.3,3330.7,4.34967767]
[1768357808306,1.11,3331.3,3330.8,0.41]
[1768357810037,7.38116761,3331.1,3330.5,0.001]
[1768357810333,7.38116761,3331.1,3329.8,4.34967767]
[1768357810334,5.11727303,3331.0,3329.8,4.34967767]
[1768357810485,5.11727303,3331.0,3329.6,0.41]
[1768357810486,4.37915627,3330.8,3329.6,0.41]
[1768357811199,4.37915627,3330.8,3329.6,3.41336368]
[1768357811400,4.37915627,3330.8,3329.6,7.76304135]
[1768357811600,4.8581719,3330.7,3329.5,0.411]
[1768357811983,7.38161828,3330.6,3329.5,3.41445118]
[1768357812523,4.37915627,3330.6,3329.5,3.41445118]
[1768357812900,4.37915627,3330.6,3329.5,4.76067767]
[1768357813099,4.93415627,3330.6,3329.5,4.76067767]
[1768357813423,1.14179878,3330.5,3329.5,7.76412784]
[1768357814121,3.00264232,3330.4,3329.6,0.41]
[1768357814423,7.38179859,3330.4,3329.6,0.41]
[1768357814819,10.38444091,3330.4,3329.5,0.001]
[1768357815038,1.15262397,3330.3,3329.5,0.411]
[1768357815331,1.70762397,3330.3,3329.5,0.001]
[1768357816111,3.00282265,3330.2,3329.5,0.001]
[1768357816714,6.08678024,3330.3,3329.5,0.001]
[1768357816911,9.0895282,3330.3,3329.5,0.001]
[1768357817238,0.90895282,3330.2,3329.5,0.001]
[1768357817804,1.46395282,3330.2,3329.5,0.001]
[1768357818826,8.92923394,3330.2,3329.5,0.001]
[1768357819229,4.46244187,3330.1,3329.5,0.001]
[1768357820142,8.02040197,3330.1,3329.5,0.001]
[1768357820443,9.32461234,3330.1,3329.5,0.001]
[1768357821167,6.32165224,3330.1,3329.5,0.001]
[1768357821731,1.85921037,3330.1,3329.8,0.001]
[1768357822463,0.555,3330.1,3329.8,0.001]
[1768357822668,1.11,3330.1,3329.8,0.001]
[1768357825265,1.665,3330.1,3329.8,0.001]
[1768357825633,1.665,3330.1,3329.8,4.66282557]
[1768357826048,1.59077669,3330.1,3329.9,4.66182557]
[1768357826229,0.555,3330.2,3330.1,4.66182557]
[1768357827326,0.555,3330.2,3329.9,3.00308482]
[1768357827561,1.11,3330.2,3329.9,4.66182557]
[1768357827961,1.11,3330.2,3329.9,7.66490053]
[1768357828162,1.11,3330.2,3329.9,4.66182557]
[1768357828588,1.11,3330.2,3329.9,7.66490331]
[1768357829879,1.665,3330.2,3329.9,7.66490331]
[1768357830367,1.665,3330.2,3330.0,4.66182557]
[1768357831323,1.665,3330.2,3329.9,3.00307774]
[1768357831467,1.665,3330.2,3329.8,5.07282557]
[1768357831867,1.665,3330.2,3329.9,4.66182557]
[1768357832277,1.665,3330.2,3329.8,0.411]
[1768357832278,2.22,3330.2,3330.1,4.66182557]
[1768357834187,0.555,3330.3,3330.2,4.66182557]
[1768357834598,1.11,3330.3,3330.2,4.66182557]
[1768357835395,0.555,3330.6,3330.2,4.66182557]
[1768357836967,1.11,3330.6,3330.2,7.6645861]
[1768357837766,1.11,3330.6,3330.3,4.3896082]
[1768357838771,1.11,3330.6,3330.4,4.3896082]
[1768357839393,1.665,3330.6,3330.4,4.3896082]
[1768357841810,2.22,3330.6,3330.3,0.41]
[1768357842103,2.22,3330.6,3330.0,3.00297025]
[1768357842289,2.22,3330.6,3330.1,0.41]
[1768357843225,2.22,3330.6,3330.1,4.7996082]
[1768357843795,2.22,3330.6,3330.1,7.80248135]
[1768357844128,4.57524064,3330.4,3329.5,0.001]
[1768357844309,4.57524064,3330.2,3329.5,0.001]
[1768357845234,4.57524064,3330.0,3329.5,0.001]
[1768357846814,5.13024064,3330.0,3329.5,0.001]
[1768357847143,0.555,3330.0,3329.5,0.001]
[1768357847786,0.002,3330.3,3329.7,4.3896082]
[1768357848296,0.002,3330.3,3329.8,4.3896082]
[1768357849225,0.557,3330.3,3329.8,4.3896082]
[1768357849427,0.557,3330.3,3329.9,3.00309318]
[1768357850128,0.557,3330.3,3330.0,4.3896082]
[1768357850428,0.557,3330.3,3329.8,3.00318308]
[1768357850628,0.557,3330.3,3329.5,0.001]
[1768357850629,4.57524064,3330.2,3329.5,0.001]
[1768357851621,5.13024064,3330.2,3329.5,0.001]
[1768357851817,0.555,3330.2,3329.5,0.001]
[1768357852335,3.55782791,3330.2,3329.5,0.001]
[1768357852508,0.555,3330.2,3329.5,0.001]
[1768357853634,3.55782465,3330.2,3329.5,0.001]
[1768357854006,4.11282465,3330.2,3329.5,0.001]
[1768357855540,4.57524064,3330.1,3329.5,0.001]
[1768357856426,8.13317256,3330.1,3329.5,0.001]
[1768357857306,8.13317256,3330.1,3329.8,0.001]
[1768357857725,0.002,3330.0,3329.8,0.001]
[1768357858827,0.557,3330.0,3329.8,0.001]
[1768357859724,3.56003514,3330.0,3329.8,0.001]
[1768357860257,0.557,3330.0,3329.8,0.001]
[1768357860462,3.56002862,3330.0,3329.8,0.001]
[1768357861663,8.69026926,3330.0,3329.8,0.001]
[1768357861856,2.03169452,3330.0,3329.8,0.001]
[1768357862038,5.03471624,3330.0,3329.8,0.001]
[1768357862849,4.11502172,3330.0,3329.8,0.001]
[1768357863161,1.112,3330.0,3329.8,0.001]
[1768357863948,1.667,3330.0,3329.8,0.001]
[1768357864355,4.67002741,3330.0,3329.8,0.001]
[1768357864768,1.667,3330.0,3329.8,0.001]
[1768357865680,4.67001904,3330.0,3329.8,0.001]
[1768357865835,4.67001904,3330.0,3328.7,0.20788807]
[1768357865836,4.7393232,3329.9,3328.7,0.20788807]
[1768357866029,4.3283232,3329.4,3328.7,0.20788807]
[1768357866257,4.3283232,3329.6,3328.7,4.56872491]
[1768357866460,4.3283232,3329.5,3328.7,4.56872491]
[1768357867043,4.3283232,3329.5,3328.7,0.20788807]
[1768357867666,4.3283232,3329.7,3328.7,4.56872491]
[1768357867978,4.8833232,3329.9,3328.8,4.36083684]
[1768357868166,3.00318337,3329.8,3328.8,4.36083684]
[1768357868462,8.29743458,3329.9,3329.0,4.36083684]
[1768357868975,8.85243458,3329.9,3329.0,4.36083684]
[1768357869466,11.85554596,3329.9,3329.0,4.36083684]
[1768357870340,11.85554596,3329.9,3329.3,0.001]
[1768357870667,8.85243458,3329.9,3329.3,0.001]
[1768357870873,8.44143458,3329.9,3329.3,0.001]
[1768357871072,1.11,3329.9,3329.3,4.36183684]
[1768357871242,1.11,3329.9,3329.5,4.36083684]
[1768357871430,1.665,3329.9,3329.5,4.36083684]
[1768357874382,2.22,3329.9,3329.5,4.36083684]
[1768357877399,2.775,3329.9,3329.5,4.36083684]
[1768357880518,3.33,3329.9,3329.5,4.36083684]
[1768357881500,3.33,3329.9,3329.5,4.39087137]
[1768357882192,1.7398533,3329.9,3329.7,4.51240527]
[1768357882392,1.667,3330.0,3329.8,4.51240527]
[1768357882587,0.555,3329.9,3329.8,4.51240527]
[1768357883625,0.555,3329.9,3329.8,4.51340527]
[1768357883985,0.555,3329.9,3329.8,0.001]
[1768357885024,1.11,3329.9,3329.8,0.001]
[1768357887420,1.11,3329.9,3329.8,4.51340527]
[1768357887619,1.665,3329.9,3329.8,4.51340527]
[1768357889608,1.667,3330.0,3329.8,7.51658864]
[1768357889805,1.667,3330.0,3329.9,4.51240527]
[1768357890007,0.557,3330.3,3330.1,4.51240527]
[1768357890817,0.557,3330.3,3330.1,4.92340527]
[1768357891119,1e-08,3330.3,3330.2,4.51240527]
[1768357891312,2.777,3330.6,3330.3,4.51240527]
[1768357891927,1.50901733,3330.6,3330.4,3.00264232]
[1768357892230,1.50901733,3330.6,3330.2,3.00276953]
[1768357892231,1.7418533,3330.6,3330.5,4.92340527]
[1768357894695,2.2968533,3330.6,3330.5,0.411]
[1768357895347,0.555,3331.1,3330.5,4.91668213]
[1768357895616,0.555,3331.1,3330.6,4.50568213]
[1768357896952,0.555,3331.1,3330.7,4.50568213]
[1768357897146,1.11,3331.1,3330.7,4.50568213]
[1768357898413,1.11,3331.1,3330.8,4.91668213]
[1768357899211,1.11,3331.1,3330.8,0.411]
[1768357899434,1.11,3331.1,3330.8,3.41327773]
[1768357899633,1.665,3331.1,3330.8,0.411]
[1768357901519,1.665,3331.1,3330.8,3.41327658]
[1768357901719,1.665,3331.1,3330.8,7.91895871]
[1768357902031,1.665,3331.1,3330.9,4.50568213]
[1768357902212,1.11,3331.3,3330.9,4.50568213]
[1768357902655,1.11,3331.3,3330.8,3.41327658]
[1768357903587,1.11,3331.3,3330.8,7.91895871]
[1768357904182,1.11,3331.3,3330.9,4.50568213]
[1768357904594,1.665,3331.3,3330.9,4.50568213]
[1768357905462,1.665,3331.3,3330.8,0.411]
[1768357906458,1.665,3331.3,3330.8,3.41326932]
[1768357906660,1.665,3331.3,3330.8,0.411]
[1768357906860,2.22,3331.3,3330.8,0.411]
[1768357907062,2.22,3331.3,3330.8,4.91668213]
[1768357907290,2.22,3331.3,3330.8,7.91896027]
[1768357907598,2.22,3331.3,3330.9,4.50568213]
[1768357907792,0.002,3331.0,3330.9,4.50568213]
[1768357908197,2.222,3331.3,3330.9,4.50568213]
[1768357908513,2.222,3331.3,3330.9,7.50784771]
[1768357909080,2.222,3331.3,3331.0,4.50568213]
[1768357909279,2.777,3331.3,3331.0,4.50568213]
[1768357911807,3.332,3331.3,3331.0,4.50568213]
[1768357912184,3.332,3331.3,3331.1,4.50568213]
[1768357912711,0.557,3331.7,3331.2,4.53570134]
[1768357912915,0.557,3331.7,3331.0,20.23997616]
[1768357913123,0.557,3331.7,3331.1,4.50568213]
[1768357914322,1.112,3331.7,3331.1,7.50764246]
[1768357914891,1.112,3331.7,3331.2,4.50568213]
[1768357915613,4.55964616,3331.6,3331.1,0.411]
[1768357916316,1.112,3331.7,3331.1,0.411]
[1768357916693,1.667,3331.7,3331.1,0.411]
[1768357918496,1.667,3331.7,3331.1,3.41298498]
[1768357919206,2.222,3331.7,3331.2,4.50568213]
[1768357919931,0.002,3331.4,3331.3,0.001]
[1768357921544,0.557,3331.4,3331.3,0.001]
[1768357922422,1e-08,3331.4,3331.3,0.001]
[1768357924024,0.55500001,3331.4,3331.3,0.001]
[1768357924826,2.222,3331.7,3331.3,4.50668213]
[1768357926158,2.222,3331.7,3331.4,0.03001741]
[1768357926457,2.222,3331.7,3331.3,3.00282217]
[1768357926458,2.777,3331.7,3331.3,3.00282217]
[1768357926765,2.777,3331.7,3331.3,0.001]
[1768357927085,2.777,3331.7,3331.3,3.00279218]
[1768357927557,2.777,3331.7,3331.3,4.49519413]
[1768357928835,3.332,3331.7,3331.3,4.49519413]
[1768357929659,3.332,3331.7,3331.3,7.4969836]
[1768357931352,3.887,3331.7,3331.3,7.4969836]
[1768357931557,0.002,3331.4,3331.3,7.4969836]
[1768357931726,3.887,3331.7,3331.4,4.49419413]
[1768357934159,4.442,3331.7,3331.3,0.001]
[1768357936428,4.997,3331.7,3331.3,0.001]
[1768357937450,9.48150899,3331.7,3331.3,0.001]
[1768357938328,4.997,3331.7,3331.3,0.001]
[1768357938656,4.997,3331.7,3331.3,4.40310517]
[1768357938844,5.552,3331.7,3331.3,4.40310517]
[1768357939359,5.552,3331.7,3331.3,0.001]
[1768357940031,5.552,3331.7,3331.3,7.40487487]
[1768357941331,5.552,3331.7,3331.4,7.40384045]
[1768357941531,6.107,3331.7,3331.5,4.40210517]
[1768357943951,6.662,3331.7,3331.5,4.40210517]
[1768357945471,6.662,3331.7,3331.3,7.40493628]
[1768357946364,6.662,3331.7,3331.4,4.40210517]
[1768357946569,7.217,3331.7,3331.4,4.40210517]
[1768357949032,7.772,3331.7,3331.4,4.40210517]
[1768357951455,8.327,3331.7,3331.4,4.40210517]
[1768357954169,8.882,3331.7,3331.4,4.40210517]
[1768357954464,8.882,3331.7,3331.3,3.00283111]
[1768357954673,8.882,3331.7,3331.4,4.40210517]
[1768357956840,9.437,3331.7,3331.4,4.40210517]
[1768357959092,4.49224619,3332.6,3331.7,4.634387]
[1768357959296,4.49224619,3332.6,3331.8,5.044387]
[1768357959477,4.49224619,3332.8,3331.8,5.044387]
[1768357960097,7.49274258,3332.8,3331.9,4.634387]
[1768357960267,4.49224619,3332.7,3331.9,4.634387]
[1768357960460,4.49224619,3332.7,3332.0,0.41]
[1768357961692,5.04724619,3332.7,3332.0,0.41]
[1768357962068,5.04724619,3332.7,3332.0,4.634387]
[1768357962270,0.555,3332.7,3332.0,5.044387]
[1768357963858,1.11,3332.7,3332.0,5.044387]